bitfinex/quotes_SOLUSD_20240614
["timestamp","ask_amount","ask_price","bid_price","bid_amount"]
[1718399663603,7.8279,141.8,141.78,2.6095]
[1718399663818,15.6558,141.8,141.78,2.6095]
[1718399664107,106.6058,141.84,141.76,7.83]
[1718399664290,0.68,141.83,141.75,23.4914]
[1718399664484,2.6097,141.78,141.76,2.6099]
[1718399664675,7.8296,141.77,141.75,7.8303]
[1718399664878,2.61,141.76,141.75,2.6102]
[1718399665086,2.61,141.76,141.74,26.1032]
[1718399665688,2.61,141.76,141.74,23.493]
[1718399665901,26.0989,141.77,141.75,2.6102]
[1718399666101,2.61,141.76,141.75,2.6102]
[1718399666401,26.0989,141.77,141.75,2.6102]
[1718399666614,0.17,141.78,141.68,5.8331]
[1718399666790,0.17,141.75,141.69,13.0563]
[1718399666994,0.17,141.75,141.66,15.2578]
[1718399666995,2.6104,141.74,141.72,13.0536]
[1718399667222,2.6104,141.74,141.66,15.2578]
[1718399667223,15.6637,141.73,141.71,2.6109]
[1718399667692,7.8319,141.73,141.71,2.6109]
[1718399668013,26.1048,141.74,141.72,2.6107]
[1718399668204,2.6105,141.74,141.72,15.6645]
[1718399668437,2.6104,141.74,141.72,2.6106]
[1718399668605,7.833,141.71,141.69,2.6113]
[1718399668919,2.6111,141.7,141.68,2.6114]
[1718399669097,7.8331,141.71,141.69,7.8338]
[1718399669298,2.6105,141.74,141.72,2.6107]
[1718399669612,2.6105,141.74,141.72,7.8322]
[1718399670383,7.8313,141.74,141.72,2.6107]
[1718399670588,23.4936,141.74,141.71,23.4974]
[1718399670817,26.1041,141.74,141.72,2.6107]
[1718399671017,2.6106,141.73,141.71,26.1082]
[1718399671517,2.6108,141.72,141.7,26.1102]
[1718399671820,0.34,141.76,141.64,5.8331]
[1718399671821,2.6112,141.7,141.64,5.8331]
[1718399671986,13.0569,141.69,141.64,5.8331]
[1718399672189,7.8342,141.69,141.67,7.8349]
[1718399672408,23.5021,141.69,141.67,2.6116]
[1718399672586,5.2235,141.67,141.64,18.2851]
[1718399672912,0.17,141.7,141.61,21.21]
[1718399673217,26.1178,141.67,141.65,2.612]
[1718399673399,7.8355,141.67,141.65,2.612]
[1718399673597,7.8355,141.67,141.65,7.8361]
[1718399673920,7.8355,141.67,141.65,2.612]
[1718399674224,2.6113,141.69,141.63,21.21]
[1718399674395,15.9003,141.71,141.68,2.6115]
[1718399674396,26.1121,141.7,141.68,2.6115]
[1718399674905,15.6671,141.7,141.68,2.6115]
[1718399675290,26.1117,141.7,141.68,2.6115]
[1718399675489,7.8336,141.7,141.68,7.8344]
[1718399675689,15.6681,141.69,141.67,2.6115]
[1718399676019,2.6115,141.68,141.67,2.6115]
[1718399676195,2.6115,141.68,141.66,26.1178]
[1718399676597,7.8346,141.68,141.66,7.8352]
[1718399676999,18.2796,141.69,141.67,7.835]
[1718399677190,7.8343,141.69,141.67,7.835]
[1718399677391,15.6683,141.69,141.67,7.835]
[1718399677599,2.6115,141.68,141.66,26.1184]
[1718399677918,2.6115,141.68,141.67,2.6117]
[1718399678132,2.6115,141.68,141.66,23.5067]
[1718399678301,7.8343,141.69,141.67,7.835]
[1718399678610,15.6683,141.69,141.67,7.835]
[1718399678786,0.17,141.67,141.55,42.4529]
[1718399678997,2.6125,141.63,141.6,23.5159]
[1718399679190,2.6125,141.63,141.6,23.5158]
[1718399679418,23.5107,141.64,141.61,2.6126]
[1718399679593,7.8374,141.63,141.6,7.8387]
[1718399679793,2.6125,141.63,141.6,26.1293]
[1718399680720,2.6126,141.62,141.6,2.6128]
[1718399681291,26.1244,141.63,141.6,2.6128]
[1718399681488,26.1244,141.63,141.55,42.4529]
[1718399681489,100.0,141.66,141.52,15.4098]
[1718399681689,2.6127,141.62,141.59,2.613]
[1718399681908,7.8379,141.62,141.59,7.8393]
[1718399682121,15.6758,141.62,141.59,2.613]
[1718399682490,2.6128,141.61,141.58,7.8396]
[1718399682693,18.2886,141.62,141.59,2.6131]
[1718399683001,18.2863,141.64,141.6,5.2259]
[1718399683200,2.6126,141.62,141.6,2.6129]
[1718399684020,15.6747,141.63,141.6,7.8388]
[1718399684312,7.8381,141.62,141.59,7.8393]
[1718399684504,2.6127,141.62,141.6,2.6129]
[1718399685699,26.1254,141.63,141.6,2.6129]
[1718399686525,2.6126,141.62,141.6,2.6129]
[1718399686942,26.1255,141.63,141.6,2.6129]
[1718399687111,26.1255,141.63,141.6,7.8388]
[1718399687940,2.6126,141.62,141.6,7.8388]
[1718399688656,2.6126,141.62,141.6,2.6129]
[1718399689517,26.1254,141.63,141.6,7.8388]
[1718399690045,2.6126,141.62,141.6,2.6129]
[1718399690225,7.8378,141.62,141.59,26.1308]
[1718399690434,26.1261,141.62,141.59,7.8391]
[1718399690733,26.1261,141.62,141.59,15.6785]
[1718399691547,2.6126,141.62,141.6,2.6129]
[1718399691848,7.8378,141.62,141.59,26.1311]
[1718399693642,7.8378,141.62,141.59,23.5181]
[1718399693846,7.8378,141.62,141.6,2.6129]
[1718399694281,2.6126,141.62,141.6,2.6129]
[1718399694454,2.6126,141.62,141.6,7.8388]
[1718399694769,7.838,141.62,141.59,26.1311]
[1718399695073,2.6128,141.61,141.59,7.8392]
[1718399695278,2.6128,141.61,141.59,2.613]
[1718399695439,30.0,141.6,141.59,2.613]
[1718399695646,30.0,141.6,141.58,23.5198]
[1718399695871,30.0,141.6,141.59,2.6131]
[1718399696377,30.0,141.6,141.59,7.8394]
[1718399696548,30.0,141.6,141.52,36.6198]
[1718399696874,32.613,141.6,141.57,23.521]
[1718399697075,30.0,141.6,141.58,23.5196]
[1718399697273,30.0,141.6,141.58,26.1327]
[1718399698149,30.0,141.6,141.59,2.6131]
[1718399698353,30.0,141.6,141.59,26.1316]
[1718399699847,5.2209,141.74,141.6,0.17]
[1718399700041,100.0,141.76,141.6,0.17]
[1718399700042,105.67933571,141.76,141.64,21.21]
[1718399700249,207.35896737,141.76,141.71,5.2217]
[1718399700558,15.6649,141.72,141.69,7.8338]
[1718399700763,23.4963,141.73,141.7,7.8332]
[1718399701087,7.8323,141.72,141.7,2.6111]
[1718399702083,2.6108,141.72,141.7,7.8333]
[1718399702571,7.8323,141.72,141.7,2.6111]
[1718399702772,7.8323,141.72,141.7,7.8333]
[1718399702962,7.8323,141.72,141.7,2.6111]
[1718399703776,7.8323,141.72,141.69,23.5011]
[1718399703777,7.833,141.71,141.69,2.6113]
[1718399703948,15.6659,141.71,141.69,2.6113]
[1718399704447,7.833,141.71,141.69,2.6113]
[1718399704644,7.833,141.71,141.68,23.5032]
[1718399704645,7.8336,141.7,141.68,2.6114]
[1718399705344,15.6671,141.7,141.68,2.6114]
[1718399705549,7.834,141.69,141.67,2.6116]
[1718399705769,18.2795,141.69,141.67,2.6116]
[1718399705971,15.668,141.69,141.67,2.6116]
[1718399706176,26.1133,141.69,141.67,2.6117]
[1718399706587,106.3659,141.73,141.6,20.0]
[1718399706588,15.5071,141.7,141.65,7.8358]
[1718399706788,100.17,141.69,141.54,21.21]
[1718399706958,2.612,141.65,141.63,26.1236]
[1718399707150,2.612,141.65,141.63,7.8368]
[1718399707457,2.612,141.65,141.63,15.674]
[1718399708052,2.612,141.65,141.63,7.8368]
[1718399708248,2.612,141.65,141.63,15.674]
[1718399708859,26.1193,141.66,141.63,15.674]
[1718399709149,7.8359,141.66,141.64,2.6121]
[1718399709358,2.612,141.66,141.64,7.8366]
[1718399709567,2.612,141.65,141.63,7.8368]
[1718399709786,2.612,141.65,141.63,15.674]
[1718399709977,23.5072,141.66,141.63,15.674]
[1718399710282,2.612,141.65,141.63,15.674]
[1718399710667,7.8374,141.63,141.6,23.5159]
[1718399710862,23.5143,141.62,141.59,23.5181]
[1718399711085,7.8384,141.61,141.59,7.8391]
[1718399711268,2.6128,141.61,141.59,7.8391]
[1718399711667,5.2254,141.62,141.59,23.5179]
[1718399711872,7.8381,141.62,141.6,2.6129]
[1718399712254,0.17,141.63,141.6,18.2906]
[1718399712476,8.1773,141.63,141.61,2.6126]
[1718399712699,16.0146,141.63,141.61,2.6126]
[1718399712980,16.0146,141.63,141.6,26.1291]
[1718399713275,26.4643,141.63,141.6,23.5163]
[1718399713471,26.4643,141.63,141.61,2.6127]
[1718399713685,8.1773,141.63,141.61,2.6127]
[1718399714501,0.34,141.64,141.61,18.2895]
[1718399714801,2.6122,141.64,141.62,26.1258]
[1718399715174,23.8491,141.65,141.62,23.5133]
[1718399715362,23.8491,141.65,141.62,2.6124]
[1718399715363,7.8367,141.64,141.62,2.6124]
[1718399715764,2.6124,141.63,141.61,26.1269]
[1718399715979,23.5139,141.62,141.58,7.8395]
[1718399716177,2.6128,141.61,141.59,7.8392]
[1718399716567,18.2905,141.61,141.52,21.21]
[1718399716871,7.8386,141.61,141.59,2.6131]
[1718399717077,7.8386,141.61,141.59,7.8394]
[1718399717475,7.8386,141.61,141.59,2.6131]
[1718399717874,2.6129,141.61,141.59,7.8394]
[1718399718093,23.8546,141.62,141.6,2.6129]
[1718399718094,26.4673,141.62,141.6,2.6129]
[1718399718391,41.9739,141.63,141.6,15.6777]
[1718399718579,39.3614,141.63,141.61,2.6128]
[1718399718785,15.6786,141.63,141.61,7.8383]
[1718399718981,18.291,141.63,141.61,7.8383]
[1718399719307,26.6332,141.64,141.62,2.6126]
[1718399719607,0.34,141.64,141.62,26.126]
[1718399719814,2.6121,141.65,141.63,7.8372]
[1718399720170,7.8363,141.65,141.63,2.6124]
[1718399720799,2.6122,141.64,141.62,26.125]
[1718399721186,2.6122,141.64,141.62,7.8374]
[1718399721598,15.6735,141.64,141.62,2.6124]
[1718399721813,26.1225,141.64,141.61,26.1267]
[1718399722111,7.8372,141.63,141.61,2.6126]
[1718399722308,22.0682,141.66,141.59,23.518]
[1718399722309,5.2253,141.62,141.59,23.518]
[1718399722483,10.4508,141.62,141.58,13.0664]
[1718399722687,0.17,141.63,141.58,13.0664]
[1718399722688,7.8391,141.6,141.58,2.6133]
[1718399722876,2.6131,141.6,141.58,15.6799]
[1718399723284,23.5163,141.61,141.58,26.1333]
[1718399723607,2.613,141.6,141.58,26.1333]
[1718399723984,23.5163,141.61,141.58,26.1333]
[1718399724418,2.613,141.6,141.58,26.1333]
[1718399724599,15.6775,141.61,141.59,2.6131]
[1718399724910,26.1272,141.62,141.59,23.5183]
[1718399725214,26.1272,141.62,141.6,7.8386]
[1718399725215,2.6126,141.62,141.6,7.8386]
[1718399725380,7.8379,141.62,141.6,2.6129]
[1718399725585,2.6127,141.62,141.6,7.8388]
[1718399725803,2.6127,141.62,141.6,15.6777]
[1718399727610,2.613,141.6,141.58,15.6793]
[1718399727788,2.6129,141.6,141.58,26.1328]
[1718399728186,26.1283,141.61,141.59,2.6131]
[1718399728811,7.8381,141.62,141.6,2.6129]
[1718399729018,15.676,141.62,141.6,2.6129]
[1718399729319,26.1265,141.62,141.6,2.6129]
[1718399730101,7.8381,141.62,141.6,2.6129]
[1718399731021,15.6759,141.62,141.6,2.6129]
[1718399731533,2.6128,141.61,141.59,15.6786]
[1718399731708,26.1281,141.61,141.59,2.613]
[1718399731903,7.8385,141.61,141.59,2.613]
[1718399732307,15.6769,141.61,141.59,2.613]
[1718399732623,7.8385,141.61,141.59,7.8393]
[1718399733614,2.6128,141.61,141.59,7.8393]
[1718399734703,2.6128,141.61,141.59,15.6788]
[1718399734894,23.5146,141.62,141.59,15.6788]
[1718399734895,26.1273,141.62,141.59,26.1315]
[1718399735418,23.5146,141.62,141.59,26.1315]
[1718399735601,0.51,141.61,141.54,13.4616]
[1718399735801,7.8391,141.6,141.58,2.6133]
[1718399735997,7.8391,141.6,141.57,26.134]
[1718399735998,15.6781,141.6,141.57,26.134]
[1718399736220,15.6781,141.6,141.57,23.5207]
[1718399736401,15.6781,141.6,141.58,2.6133]
[1718399736718,0.17,141.57,141.5,13.4616]
[1718399736935,0.17,141.57,141.55,15.6831]
[1718399737105,8.0105,141.57,141.55,2.6137]
[1718399737635,8.0105,141.57,141.54,23.5254]
[1718399737636,2.784,141.55,141.52,7.843]
[1718399737816,8.0118,141.55,141.52,26.1434]
[1718399738525,8.0118,141.55,141.53,2.6142]
[1718399738822,0.17,141.55,141.53,15.6855]
[1718399739237,2.7839,141.55,141.53,7.8427]
[1718399739624,0.17,141.55,141.54,2.6141]
[1718399741229,0.17,141.55,141.54,7.8423]
[1718399741419,0.17,141.55,141.54,2.6141]
[1718399741735,23.5228,141.57,141.55,2.6139]
[1718399741736,7.8408,141.57,141.55,2.6139]
[1718399741942,7.8408,141.57,141.47,34.6716]
[1718399741943,40.964,141.6,141.57,2.6135]
[1718399742115,122.6723,141.6,141.55,15.6826]
[1718399742321,7.8401,141.58,141.56,2.6137]
[1718399742542,2.6135,141.57,141.55,26.1378]
[1718399742754,2.6135,141.57,141.55,7.8411]
[1718399743246,26.1338,141.58,141.55,26.1384]
[1718399743617,7.8402,141.58,141.56,2.6137]
[1718399743842,2.6135,141.58,141.56,2.6137]
[1718399744060,23.6896,141.59,141.56,26.137]
[1718399744061,26.3029,141.59,141.56,26.137]
[1718399744743,2.6133,141.58,141.56,26.137]
[1718399745119,2.7833,141.59,141.57,7.8405]
[1718399745531,7.36508695,141.62,141.53,13.4616]
[1718399745722,7.36508695,141.62,141.59,2.613]
[1718399745723,2.6128,141.61,141.59,2.613]
[1718399745944,26.1265,141.62,141.59,15.6788]
[1718399746147,15.6759,141.62,141.59,26.1314]
[1718399746635,26.1282,141.61,141.58,26.1328]
[1718399746835,26.1282,141.61,141.58,23.5197]
[1718399747139,26.1282,141.61,141.58,26.1329]
[1718399747847,26.1282,141.61,141.59,2.6131]
[1718399748152,18.289,141.62,141.59,2.6131]
[1718399748325,7.8385,141.61,141.59,2.6131]
[1718399748528,15.6769,141.61,141.58,26.1327]
[1718399749147,2.613,141.6,141.58,26.1327]
[1718399749528,7.8385,141.61,141.59,2.6131]
[1718399749744,15.6769,141.61,141.58,26.1327]
[1718399750259,2.613,141.6,141.58,15.6797]
[1718399750568,7.839,141.6,141.58,2.6132]
[1718399750747,7.839,141.6,141.57,23.521]
[1718399750948,7.839,141.6,141.58,2.6133]
[1718399751242,7.8389,141.6,141.58,2.6133]
[1718399751462,7.839,141.6,141.58,2.6133]
[1718399751927,2.613,141.6,141.58,7.84]
[1718399752128,7.8389,141.6,141.58,2.6133]
[1718399752558,0.17,141.63,141.53,34.6716]
[1718399752723,2.613,141.6,141.58,26.1324]
[1718399752924,15.6781,141.6,141.57,23.5211]
[1718399753425,7.8391,141.6,141.58,2.6133]
[1718399753652,15.6781,141.6,141.57,26.1344]
[1718399753822,2.6131,141.59,141.57,7.8402]
[1718399754853,26.1301,141.6,141.57,26.1349]
[1718399755355,2.6131,141.59,141.57,26.1349]
[1718399755552,2.6131,141.59,141.57,7.8402]
[1718399755863,26.1301,141.6,141.57,15.6808]
[1718399756059,0.34,141.61,141.54,10.456]
[1718399756254,5.2271,141.57,141.54,20.9119]
[1718399756435,23.5229,141.57,141.54,15.6841]
[1718399756638,7.8409,141.57,141.55,2.6139]
[1718399757155,2.6136,141.57,141.55,7.8416]
[1718399757654,15.6826,141.56,141.53,23.5283]
[1718399757844,15.6826,141.56,141.54,2.6141]
[1718399759553,7.842,141.55,141.52,15.6865]
[1718399759762,7.8425,141.54,141.52,2.6144]
[1718399760261,5.3983,141.54,141.51,23.5307]
[1718399760428,26.3112,141.54,141.51,26.1452]
[1718399760634,26.3112,141.54,141.52,2.6144]
[1718399760952,26.3112,141.54,141.51,23.5307]
[1718399761157,8.0125,141.54,141.52,2.6144]
[1718399761357,15.8548,141.54,141.51,23.5307]
[1718399761580,8.0125,141.54,141.51,23.5307]
[1718399761754,0.17,141.54,141.52,13.0721]
[1718399761950,0.17,141.54,141.52,15.6864]
[1718399762648,2.7841,141.54,141.52,15.6864]
[1718399762950,2.7841,141.54,141.52,7.8431]
[1718399763146,23.5245,141.56,141.53,7.8427]
[1718399763411,0.17,141.55,141.53,15.6855]
[1718399763572,0.17,141.55,141.53,7.8426]
[1718399763573,2.7839,141.55,141.53,7.8426]
[1718399763776,0.17,141.55,141.53,26.1421]
[1718399763974,2.6136,141.57,141.55,7.8416]
[1718399764152,2.6136,141.57,141.55,2.6138]
[1718399764487,23.5171,141.6,141.57,7.8403]
[1718399764764,22.0418,141.61,141.53,13.4616]
[1718399765017,5.2249,141.63,141.53,34.6716]
[1718399765210,7.8374,141.63,141.6,7.8387]
[1718399765423,7.8374,141.63,141.61,2.6127]
[1718399765693,2.6125,141.63,141.61,2.6127]
[1718399766289,7.8374,141.63,141.6,7.8387]
[1718399766492,40.3284,141.64,141.53,34.6716]
[1718399766493,10.449,141.64,141.56,21.21]
[1718399766719,39.3441,141.68,141.65,2.6119]
[1718399766996,2.6117,141.67,141.65,2.6119]
[1718399767480,7.8348,141.68,141.65,7.836]
[1718399767658,15.6694,141.68,141.65,7.836]
[1718399767856,2.6117,141.67,141.65,7.836]
[1718399768095,2.6119,141.66,141.64,2.6121]
[1718399768260,2.6117,141.67,141.64,23.5098]
[1718399768582,2.6117,141.67,141.65,2.612]
[1718399769166,2.6116,141.68,141.66,2.6118]
[1718399769364,32.4858,141.71,141.6,0.17]
[1718399769582,2.6113,141.69,141.67,7.8347]
[1718399769787,7.8335,141.7,141.67,26.1163]
[1718399770290,2.6112,141.7,141.68,2.6114]
[1718399770493,2.611,141.71,141.68,26.1137]
[1718399770668,2.611,141.71,141.69,7.8338]
[1718399770988,2.611,141.71,141.64,21.21]
[1718399770989,2.6118,141.67,141.64,10.4488]
[1718399771163,26.1161,141.68,141.65,15.6721]
[1718399771363,100.0,141.74,141.6,20.68]
[1718399771592,2.6116,141.68,141.66,2.6118]
[1718399771885,15.6692,141.68,141.65,26.12]
[1718399772087,2.6116,141.68,141.66,2.6118]
[1718399772775,13.0562,141.7,141.67,7.8349]
[1718399772988,100.0,141.74,141.68,15.6686]
[1718399772989,7.8329,141.71,141.68,15.6686]
[1718399773160,2.6111,141.7,141.68,15.6686]
[1718399773496,15.6659,141.71,141.68,15.6686]
[1718399774195,2.6111,141.7,141.68,7.8342]
[1718399774380,23.4986,141.71,141.68,7.8343]
[1718399774584,2.6111,141.7,141.68,7.8343]
[1718399774785,23.4986,141.71,141.68,7.8343]
[1718399774786,26.1097,141.71,141.68,7.8343]
[1718399774983,26.1097,141.71,141.68,15.6688]
[1718399775189,7.833,141.71,141.69,2.6112]
[1718399775496,2.6111,141.7,141.68,7.8341]
[1718399775805,23.4942,141.74,141.71,7.8327]
[1718399775992,15.6637,141.73,141.7,26.1105]
[1718399776189,26.1048,141.74,141.71,15.6653]
[1718399776496,26.1048,141.74,141.66,21.21]
[1718399776497,6.2821,141.75,141.66,21.21]
[1718399776776,48.9142,141.81,141.78,2.6095]
[1718399776964,21.89,141.81,141.74,10.4416]
[1718399777413,27.1083,141.81,141.71,34.6716]
[1718399777510,21.89,141.81,141.79,2.6094]
[1718399777667,21.89,141.81,141.73,21.38]
[1718399777959,21.89,141.81,141.74,41.38]
[1718399778121,21.89,141.81,141.74,41.21]
[1718399778344,21.89,141.81,141.8,2.6093]
[1718399778489,21.89,141.81,141.8,26.093]
[1718399778831,10.4343,141.84,141.79,5.2188]
[1718399778982,10.4343,141.84,141.74,41.21]
[1718399778983,7.8254,141.85,141.81,5.2181]
[1718399779189,6.5113,141.87,141.81,5.2181]
[1718399779190,2.6083,141.86,141.83,2.6086]
[1718399779395,2.6083,141.86,141.81,18.2626]
[1718399779396,2.6086,141.84,141.81,2.609]
[1718399779591,2.6088,141.83,141.8,7.8277]
[1718399779790,2.6085,141.84,141.81,7.8269]
[1718399780003,2.6087,141.83,141.8,5.2185]
[1718399780228,2.6087,141.83,141.79,18.266]
[1718399780229,18.2618,141.83,141.78,5.2191]
[1718399780426,100.0,141.86,141.79,5.2188]
[1718399780626,2.6087,141.84,141.81,2.6091]
[1718399780814,7.8252,141.85,141.82,2.6089]
[1718399781016,24.7683,141.87,141.82,18.2624]
[1718399781316,7.8258,141.84,141.81,2.609]
[1718399781521,2.6087,141.84,141.81,2.609]
[1718399781817,7.827,141.82,141.78,23.4857]
[1718399782047,100.0,141.84,141.73,21.21]
[1718399782321,2.6093,141.8,141.77,5.2195]
[1718399782488,0.17,141.83,141.67,10.0]
[1718399782696,13.0474,141.79,141.76,2.6098]
[1718399782901,2.6097,141.78,141.76,2.6098]
[1718399783124,7.8285,141.79,141.76,2.6098]
[1718399783314,2.6096,141.79,141.76,7.8298]
[1718399783498,0.17,141.83,141.71,34.6716]
[1718399783747,100.0,141.86,141.71,34.6716]
[1718399783748,31.87285255,141.88,141.85,2.6083]
[1718399783927,29.7327789,141.88,141.85,2.6083]
[1718399784178,29.7327789,141.88,141.76,21.21]
[1718399784179,5.2168,141.85,141.82,2.6088]
[1718399784349,2.6089,141.82,141.75,21.21]
[1718399784520,2.6091,141.81,141.79,2.6094]
[1718399784734,7.8264,141.83,141.8,2.6092]
[1718399785043,2.6087,141.83,141.8,15.6555]
[1718399785209,2.6087,141.83,141.81,2.609]
[1718399785427,2.6087,141.84,141.82,2.6088]
[1718399785624,2.6085,141.85,141.82,5.2177]
[1718399785815,7.8252,141.85,141.82,7.8265]
[1718399786132,2.6085,141.85,141.83,2.6087]
[1718399786305,7.8249,141.86,141.83,7.8262]
[1718399786736,5.2166,141.86,141.82,18.2622]
[1718399786929,5.2165,141.86,141.81,7.827]
[1718399787242,6.5113,141.87,141.8,7.8275]
[1718399787453,2.6088,141.83,141.81,2.6089]
[1718399787753,7.8263,141.83,141.8,7.8277]
[1718399787903,2.6088,141.83,141.81,2.609]
[1718399788106,2.6084,141.85,141.76,66.21]
[1718399788418,16.6934789,141.88,141.87,2.608]
[1718399788627,16.6934789,141.88,141.87,7.824]
[1718399788628,0.8445789,141.88,141.87,7.824]
[1718399788941,0.8445789,141.88,141.87,2.608]
[1718399789103,3.4523789,141.88,141.86,2.608]
[1718399789526,3.4523789,141.88,141.85,26.0832]
[1718399789736,0.8445789,141.88,141.86,7.8244]
[1718399789937,3.4523789,141.88,141.86,2.608]
[1718399790147,0.8445789,141.88,141.86,2.608]
[1718399790428,0.8445789,141.88,141.87,2.608]
[1718399790808,3.4523789,141.88,141.86,2.6081]
[1718399791209,3.4523789,141.88,141.86,7.8244]
[1718399791210,0.8445789,141.88,141.86,7.8244]
[1718399791407,3.4523789,141.88,141.86,2.6081]
[1718399792321,3.4523789,141.88,141.85,26.083]
[1718399792520,3.4523789,141.88,141.86,2.6081]
[1718399793139,0.8445789,141.88,141.86,7.8244]
[1718399793342,3.4523789,141.88,141.86,2.6081]
[1718399793532,0.8445789,141.88,141.86,13.0409]
[1718399793739,0.8445789,141.88,141.86,15.6489]
[1718399794031,0.8445789,141.88,141.86,7.8243]
[1718399794240,0.8445789,141.88,141.87,2.608]
[1718399794475,0.8445789,141.88,141.87,7.824]
[1718399794824,0.8445789,141.88,141.87,26.08]
[1718399795008,0.8445789,141.88,141.87,47.29]
[1718399795212,0.8445789,141.88,141.87,47.63]
[1718399795429,0.8445789,141.88,141.87,47.8]
[1718399795636,0.8445789,141.88,141.87,47.97]
[1718399796441,0.8445789,141.88,141.87,67.97]
[1718399797736,0.8445789,141.88,141.87,67.8]
[1718399797935,0.8445789,141.88,141.87,46.42]
[1718399798112,0.8445789,141.88,141.87,26.08]
[1718399798311,0.8445789,141.88,141.87,47.29]
[1718399798536,0.8445789,141.88,141.87,26.08]
[1718399799143,0.8445789,141.88,141.86,5.216]
[1718399799322,0.8445789,141.88,141.87,7.824]
[1718399799542,0.8445789,141.88,141.86,5.2161]
[1718399799874,0.8445789,141.88,141.86,2.6081]
[1718399800025,0.8445789,141.88,141.86,13.0408]
[1718399800222,3.4523789,141.88,141.86,2.608]
[1718399800518,8.6679789,141.88,141.85,26.0828]
[1718399800717,2.6082,141.86,141.83,23.4785]
[1718399800983,15.6516,141.84,141.8,10.437]
[1718399801132,2.6086,141.84,141.77,34.6716]
[1718399801317,15.4632,141.86,141.83,7.826]
[1718399801640,15.4632,141.86,141.77,34.6716]
[1718399801641,23.2879,141.86,141.77,34.6716]
[1718399801938,15.4632,141.86,141.84,2.6085]
[1718399802147,7.8258,141.84,141.81,7.827]
[1718399802544,2.6084,141.85,141.83,2.6087]
[1718399802886,28.5044,141.86,141.83,7.8261]
[1718399803021,20.6798,141.86,141.83,7.8261]
[1718399803227,15.4632,141.86,141.77,34.6716]
[1718399803551,0.8445789,141.88,141.8,0.17]
[1718399803841,0.8445789,141.88,141.87,2.608]
[1718399804043,0.8445789,141.88,141.86,26.0811]
[1718399804230,0.8445789,141.88,141.87,15.648]
[1718399804438,0.8445789,141.88,141.86,7.8241]
[1718399804624,2.608,141.87,141.85,7.8248]
[1718399804954,2.608,141.87,141.85,2.6082]
[1718399805449,24.3154789,141.88,141.85,2.6082]
[1718399805620,6.0602789,141.88,141.85,10.4333]
[1718399805823,8.6681789,141.88,141.85,15.6499]
[1718399806445,0.8445789,141.88,141.87,2.608]
[1718399807124,3.4523789,141.88,141.86,2.6081]
[1718399807459,3.4523789,141.88,141.86,7.8245]
[1718399807745,3.4523789,141.88,141.86,2.6081]
[1718399807746,8.6680789,141.88,141.86,2.6081]
[1718399808545,8.6680789,141.88,141.85,23.4749]
[1718399808546,8.6680789,141.88,141.85,26.0831]
[1718399808718,8.6680789,141.88,141.86,2.6081]
[1718399808921,8.6680789,141.88,141.85,26.0831]
[1718399809124,8.6680789,141.88,141.86,2.6081]
[1718399809339,8.6680789,141.88,141.85,23.4749]
[1718399809340,13.8838789,141.88,141.85,7.8247]
[1718399809641,2.608,141.87,141.85,7.8249]